fUSD/lending_fUSD_20260513
["ID","MTS","AMOUNT","RATE_DAILY","PERIOD"]
[422181563,1778658632000,-500.0,0.00014799,2]
[422181570,1778658632000,-500.0,0.00014799,2]
[422181571,1778658632000,-500.0,0.00014799,2]
[422181574,1778658632000,-500.0,0.00014799,2]
[422181573,1778658632000,-500.0,0.00014799,2]
[422181589,1778658632000,-500.0,0.00014799,2]
[422181581,1778658632000,-500.0,0.00014799,2]
[422181572,1778658632000,-500.0,0.00014799,2]
[422181582,1778658632000,-500.0,0.00014799,2]
[422181586,1778658632000,-500.0,0.00014799,2]
[422181575,1778658632000,-500.0,0.00014799,2]
[422181585,1778658632000,-500.0,0.00014799,2]
[422181583,1778658632000,-249.99999999,0.00014799,2]
[422181587,1778658632000,-500.0,0.00014799,2]
[422181578,1778658632000,-500.0,0.00014799,2]
[422181580,1778658632000,-500.0,0.00014799,2]
[422181576,1778658632000,-500.0,0.00014799,2]
[422181577,1778658632000,-500.0,0.00014799,2]
[422181579,1778658632000,-527.2056154,0.00014799,2]
[422181565,1778658632000,-500.0,0.00014799,2]
[422181615,1778658637000,-615.21547425,0.000148,2]
[422181614,1778658637000,-1331.60401081,0.000148,2]
[422181613,1778658637000,-2500.0,0.000147,2]
[422181619,1778658639000,-30093.99196174,0.000148,2]
[422181620,1778658639000,-794.84235015,0.000148,2]
[422181621,1778658640000,-14013.67119661,0.000148,2]
[422181625,1778658642000,-2256.89066246,0.000147,2]
[422181626,1778658642000,-244.72294242,0.000147,2]
[422181624,1778658642000,-2430.74259512,0.000147,2]
[422181627,1778658642000,-555.2820067,0.000148,2]
[422181628,1778658643000,-339.0,0.000148,2]
[422181629,1778658643000,-33073.53710607,0.000148,2]
[422181640,1778659332000,184.99,0.00027397,120]
[422181643,1778659405000,158.34,8.253e-05,2]
[422181642,1778659405000,158.34,6.923e-05,2]
[422181644,1778659406000,158.34,9.583e-05,2]
[422181645,1778659592000,259.0,8.1e-05,2]
[422181647,1778659606000,-55.03831144,0.00012244,2]
[422181646,1778659606000,-158.34,0.00010914,2]
[422181648,1778659723000,460.0,0.00027397,120]
[422181649,1778659760000,4760.9,0.00027397,120]
[422181651,1778659764000,-386.69831144,0.00012844,2]
[422181650,1778659764000,-103.30168856,0.00012244,2]
[422181676,1778659833000,-506.40265458,0.00013626,2]
[422181677,1778659833000,-1493.59734542,0.00013626,2]
[422181675,1778659833000,-182.98,0.00013607,2]
[422181678,1778659833000,-155.79,0.00013642,2]
[422181679,1778659833000,-214.91342137,0.00013679,2]
[422181680,1778659833000,-280.0,0.00013699,2]
[422181684,1778659833000,-276.61,0.0001374,2]
[422181688,1778659833000,-344.19,0.00013928,2]
[422181685,1778659833000,-150.0,0.00013834,2]
[422181683,1778659833000,-150.0,0.00013718,2]
[422181682,1778659833000,-200.0,0.00013699,2]
[422181686,1778659833000,-166.66,0.00013836,2]
[422181687,1778659833000,-150.0,0.00013862,2]
[422181690,1778659833000,-150.0,0.00013949,2]
[422181674,1778659833000,-150.0,0.00013603,2]
[422181681,1778659833000,-166.66,0.00013699,2]
[422181670,1778659833000,-150.0,0.00013488,2]
[422181662,1778659833000,-37.96536059,0.00013487,2]
[422181664,1778659833000,-150.0,0.00013488,2]
[422181692,1778659833000,-150.0,0.00013989,2]
[422181655,1778659833000,-75.34388856,0.00012844,2]
[422181656,1778659833000,-150.0,0.00013234,2]
[422181658,1778659833000,-113.52923641,0.00013265,2]
[422181659,1778659833000,-212.885403,0.0001342,2]
[422181657,1778659833000,-230.66076359,0.00013265,2]
[422181660,1778659833000,-231.03,0.00013485,2]
[422181669,1778659833000,-150.0,0.00013488,2]
[422181661,1778659833000,-300.0,0.00013487,2]
[422181673,1778659833000,-344.19,0.00013597,2]
[422181671,1778659833000,-150.0,0.00013488,2]
[422181665,1778659833000,-150.0,0.00013488,2]
[422181672,1778659833000,-158.34,0.00013574,2]
[422181667,1778659833000,-152.4005079,0.00013488,2]
[422181668,1778659833000,-150.0,0.00013488,2]
[422181666,1778659833000,-262.25245996,0.00013488,2]
[422181663,1778659833000,-1162.03463941,0.00013487,2]
[422181689,1778659833000,-200.0,0.00013949,2]
[422181701,1778659833000,-363.22867442,0.0001399,2]
[422181693,1778659833000,-3684.91923321,0.0001399,2]
[422181762,1778659833000,-496.38,0.00014517,2]
[422181761,1778659833000,-496.38,0.00014517,2]
[422181760,1778659833000,-496.38,0.00014517,2]
[422181749,1778659833000,-150.0,0.0001441,2]
[422181764,1778659833000,-150.0,0.00014538,2]
[422181763,1778659833000,-150.0,0.00014525,2]
[422181753,1778659833000,-150.0,0.00014466,2]
[422181747,1778659833000,-496.38,0.00014389,2]
[422181758,1778659833000,-591.21,0.00014497,2]
[422181755,1778659833000,-213.52501256,0.00014466,2]
[422181767,1778659833000,-344.19,0.00014592,2]
[422181768,1778659833000,-751.91634798,0.00014599,2]
[422181771,1778659833000,-33166.2013,0.000146,2]
[422181766,1778659833000,-186.35213856,0.00014538,2]
[422181770,1778659833000,-2000.0,0.000146,2]
[422181691,1778659833000,-166.66,0.00013973,2]
[422181751,1778659833000,-150.0,0.00014466,2]
[422181745,1778659833000,-496.38,0.00014389,2]
[422181765,1778659833000,-150.0,0.00014538,2]
[422181736,1778659833000,-344.19,0.0001426,2]
[422181742,1778659833000,-496.38,0.00014389,2]
[422181699,1778659833000,-1237.08734021,0.0001399,2]
[422181710,1778659833000,-42280.58578107,0.0001399,2]
[422181715,1778659833000,-150.0,0.00014064,2]
[422181706,1778659833000,-889.89658391,0.0001399,2]
[422181712,1778659833000,-250.0,0.00014,2]
[422181708,1778659833000,-2566.60401429,0.0001399,2]
[422181769,1778659833000,-11062.0056,0.000146,2]
[422181722,1778659833000,-150.0,0.00014179,2]
[422181731,1778659833000,-150.0,0.00014237,2]
[422181718,1778659833000,-166.66,0.0001411,2]
[422181724,1778659833000,-150.0,0.00014237,2]
[422181728,1778659833000,-150.0,0.00014237,2]
[422181696,1778659833000,-901.23418243,0.0001399,2]
[422181740,1778659833000,-166.66,0.00014384,2]
[422181738,1778659833000,-150.0,0.00014295,2]
[422181734,1778659833000,-166.66,0.00014247,2]
[422181797,1778659834000,-500.0,0.00014639,2]
[422181795,1778659834000,-500.0,0.00014639,2]
[422181792,1778659834000,-500.0,0.00014639,2]
[422181791,1778659834000,-500.0,0.00014639,2]
[422181790,1778659834000,-500.0,0.00014639,2]
[422181789,1778659834000,-500.0,0.00014639,2]
[422181788,1778659834000,-500.0,0.00014639,2]
[422181787,1778659834000,-500.0,0.00014639,2]
[422181785,1778659834000,-500.0,0.00014639,2]
[422181783,1778659834000,-500.0,0.00014639,2]
[422181796,1778659834000,-500.0,0.00014639,2]
[422181776,1778659834000,-150.0,0.00014612,2]
[422181782,1778659834000,-500.0,0.00014639,2]
[422181784,1778659834000,-322.98022753,0.00014639,2]
[422181780,1778659834000,-500.0,0.00014639,2]
[422181781,1778659834000,-500.0,0.00014639,2]
[422181779,1778659834000,-6412.58252059,0.00014638,2]
[422181777,1778659834000,-575.88764556,0.00014622,2]
[422181778,1778659834000,-1158.74048305,0.00014632,2]
[422181775,1778659834000,-13065.79525768,0.00014608,2]
[422181773,1778659834000,-2500.0,0.000146,2]
[422181774,1778659834000,-6412.58252065,0.00014605,2]
[422181772,1778659834000,-19812.0314,0.000146,2]
[422181794,1778659834000,-500.0,0.00014639,2]
[422181786,1778659834000,-496.99333705,0.00014639,2]
[422181799,1778659834000,-150.0,0.0001464,2]
[422181806,1778659834000,-328.17389946,0.0001469,2]
[422181798,1778659834000,-13065.79525761,0.0001464,2]
[422181824,1778659834000,-727.43898012,0.000147,2]
[422181818,1778659834000,-1835.0,0.000147,5]
[422181823,1778659834000,-58695.57660519,0.000147,2]
[422181821,1778659834000,-164970.5347789,0.000147,2]
[422181816,1778659834000,-500.0,0.00014699,2]
[422181822,1778659834000,-38792.30545279,0.000147,2]
[422181819,1778659834000,-466.0852766,0.000147,2]
[422181793,1778659834000,-500.0,0.00014639,2]
[422181814,1778659834000,-356.17682839,0.00014699,2]
[422181817,1778659834000,-336.233251,0.00014699,2]
[422181815,1778659834000,-215.55981299,0.00014699,2]
[422181813,1778659834000,-571.03902122,0.00014699,2]
[422181820,1778659834000,-5000.0,0.000147,2]
[422181809,1778659834000,-500.0,0.00014699,2]
[422181808,1778659834000,-500.0,0.00014699,2]
[422181807,1778659834000,-500.0,0.00014699,2]
[422181802,1778659834000,-496.38,0.00014644,2]
[422181801,1778659834000,-496.38,0.00014644,2]
[422181810,1778659834000,-500.0,0.00014699,2]
[422181800,1778659834000,-496.38,0.00014644,2]
[422181803,1778659834000,-6412.58252059,0.00014671,2]
[422181811,1778659834000,-500.0,0.00014699,2]
[422181804,1778659834000,-616.45138628,0.00014673,2]
[422181812,1778659834000,-500.0,0.00014699,2]
[422181805,1778659834000,-12449.34387133,0.00014673,2]
[422181833,1778659837000,-150.0,0.00014756,2]
[422181825,1778659837000,-1236814.144183,0.000147,2]
[422181827,1778659837000,-2009.0,0.000147,2]
[422181828,1778659837000,-6412.58252059,0.00014703,2]
[422181829,1778659837000,-13065.79525761,0.00014705,2]
[422181826,1778659837000,-1010.0,0.000147,2]
[422181831,1778659837000,-6412.58252059,0.00014736,2]
[422181830,1778659837000,-466.08527659,0.00014733,2]
[422181832,1778659837000,-13065.79525761,0.00014738,2]
[422181834,1778659837000,-575.88764555,0.00014761,2]
[422181845,1778659837000,-247.121,0.00014784,2]
[422181838,1778659837000,-496.38,0.00014772,2]
[422181837,1778659837000,-13065.79525761,0.0001477,2]
[422181840,1778659837000,-496.38,0.00014772,2]
[422181836,1778659837000,-6412.58252059,0.00014769,2]
[422181839,1778659837000,-496.38,0.00014772,2]
[422181841,1778659837000,-1045.24320785,0.00014774,2]
[422181844,1778659837000,-1467.251,0.00014784,2]
[422181843,1778659837000,-420.0,0.00014783,2]
[422181842,1778659837000,-350.0,0.00014774,2]
[422181835,1778659837000,-466.08527659,0.00014767,2]
[422181901,1778659838000,-500.0,0.00014811,2]
[422181902,1778659838000,-500.0,0.00014811,2]
[422181893,1778659838000,-500.0,0.00014811,2]
[422181905,1778659838000,-500.0,0.00014811,2]
[422181898,1778659838000,-500.0,0.00014811,2]
[422181891,1778659838000,-500.0,0.00014811,2]
[422181897,1778659838000,-500.0,0.00014811,2]
[422181889,1778659838000,-500.0,0.00014811,2]
[422181904,1778659838000,-500.0,0.00014811,2]
[422181880,1778659838000,-318.66224171,0.000148,2]
[422181894,1778659838000,-500.0,0.00014811,2]
[422181896,1778659838000,-500.0,0.00014811,2]
[422181907,1778659838000,-500.0,0.00014811,2]
[422181903,1778659838000,-500.0,0.00014811,2]
[422181900,1778659838000,-500.0,0.00014811,2]
[422181916,1778659838000,-1400.61246,0.0001485,2]
[422181878,1778659838000,-200.0,0.000148,2]
[422181913,1778659838000,-6412.58252059,0.00014834,2]
[422181917,1778659838000,-1400.61245,0.0001485,2]
[422181909,1778659838000,-500.0,0.00014811,2]
[422181906,1778659838000,-500.0,0.00014811,2]
[422181908,1778659838000,-500.0,0.00014811,2]
[422181910,1778659838000,-263.16091522,0.00014811,2]
[422181911,1778659838000,-1045.24320785,0.00014816,2]
[422181912,1778659838000,-466.08527659,0.00014833,2]
[422181915,1778659838000,-13065.79525761,0.00014835,2]
[422181895,1778659838000,-500.0,0.00014811,2]
[422181882,1778659838000,-930.17233042,0.000148,2]
[422181885,1778659838000,-13065.79525761,0.00014803,2]
[422181887,1778659838000,-500.0,0.00014811,2]
[422181849,1778659838000,-21676.3696405,0.00014792,2]
[422181848,1778659838000,-126752.6190053,0.00014792,2]
[422181851,1778659838000,-355.063531,0.00014792,2]
[422181846,1778659838000,-161.3836404,0.00014792,2]
[422181847,1778659838000,-2169.7431699,0.00014792,2]
[422181850,1778659838000,-355.063531,0.00014792,2]
[422181852,1778659838000,-355.063531,0.00014792,2]
[422181853,1778659838000,-355.063531,0.00014792,2]
[422181854,1778659838000,-151.0,0.00014792,2]
[422181856,1778659838000,-151.0,0.00014792,2]
[422181867,1778659838000,-500.0,0.00014799,2]
[422181869,1778659838000,-500.0,0.00014799,2]
[422181855,1778659838000,-151.0,0.00014792,2]
[422181857,1778659838000,-285.217761,0.00014792,2]
[422181858,1778659838000,-332.311568,0.00014792,2]
[422181859,1778659838000,-332.311568,0.00014792,2]
[422181861,1778659838000,-332.311568,0.00014792,2]
[422181863,1778659838000,-500.0,0.00014799,2]
[422181864,1778659838000,-500.0,0.00014799,2]
[422181862,1778659838000,-151.0,0.00014797,2]
[422181860,1778659838000,-332.311568,0.00014792,2]
[422181871,1778659838000,-373.13005628,0.00014799,2]
[422181873,1778659838000,-1649.0,0.000148,5]
[422181876,1778659838000,-466.08527659,0.000148,2]
[422181875,1778659838000,-200.0,0.000148,2]
[422181914,1778659838000,-1680.0,0.00014835,2]
[422181886,1778659838000,-500.0,0.00014811,2]
[422181884,1778659838000,-6412.58252059,0.00014802,2]
[422181920,1778659838000,-466.08527659,0.00014867,2]
[422181899,1778659838000,-500.0,0.00014811,2]
[422181927,1778659838000,-575.88764555,0.000149,2]
[422181949,1778659838000,-355.063531,0.00014996,2]
[422181959,1778659838000,-300.0,0.00014999,2]
[422181963,1778659838000,-360.94,0.00015,2]
[422181956,1778659838000,-332.311568,0.00014996,2]
[422181961,1778659838000,-786038.08545181,0.00015,2]
[422181955,1778659838000,-332.311568,0.00014996,2]
[422181964,1778659838000,-156.56359846,0.00015,2]
[422181960,1778659838000,-11950015.74009663,0.00015,2]
[422181954,1778659838000,-332.311568,0.00014996,2]
[422181957,1778659838000,-8673.8957804,0.00014999,2]
[422181958,1778659838000,-300.0,0.00014999,2]
[422181962,1778659838000,-243.10280168,0.00015,2]
[422181965,1778659838000,-151.0,0.00015,2]
[422181966,1778659838000,-151.0,0.00015,2]
[422181967,1778659838000,-783476.97907003,0.00015,2]
[422181970,1778659838000,-158.137345,0.00015,2]
[422181969,1778659838000,-151.0,0.00015,2]
[422181968,1778659838000,-151.0,0.00015,2]
[422181971,1778659838000,-151.0,0.00015,2]
[422181973,1778659838000,-151.0,0.00015,2]
[422181974,1778659838000,-151.0,0.00015,2]
[422181975,1778659838000,-151.0,0.00015,2]
[422181972,1778659838000,-167.340599,0.00015,2]
[422181976,1778659838000,-151.0,0.00015,2]
[422181977,1778659838000,-151.0,0.00015,2]
[422181978,1778659838000,-151.0,0.00015,2]
[422181923,1778659838000,-150.0,0.00014871,2]
[422181948,1778659838000,-355.063531,0.00014996,2]
[422181950,1778659838000,-151.0,0.00014996,2]
[422181979,1778659838000,-151.315624,0.00015,2]
[422181947,1778659838000,-355.063531,0.00014996,2]
[422181951,1778659838000,-151.0,0.00014996,2]
[422181922,1778659838000,-13065.79525761,0.00014868,2]
[422181926,1778659838000,-466.08527659,0.000149,2]
[422181921,1778659838000,-6412.58252059,0.00014867,2]
[422181918,1778659838000,-1400.61246,0.0001485,2]
[422181928,1778659838000,-13065.79525761,0.000149,2]
[422181924,1778659838000,-179.85489006,0.000149,2]
[422181925,1778659838000,-25000.0,0.000149,3]
[422181929,1778659838000,-1045.24320785,0.000149,2]
[422181930,1778659838000,-6412.58252059,0.000149,2]
[422181940,1778659838000,-150.00000001,0.00014986,2]
[422181934,1778659838000,-154.8096066,0.00014925,2]
[422181938,1778659838000,-150.0,0.00014986,2]
[422181932,1778659838000,-5137.5814662,0.000149,2]
[422181919,1778659838000,-1045.24320785,0.00014858,2]
[422181937,1778659838000,-200.0,0.00014948,2]
[422181946,1778659838000,-355.063531,0.00014996,2]
[422181943,1778659838000,-328.17389946,0.0001499,2]
[422181953,1778659838000,-332.311568,0.00014996,2]
[422181945,1778659838000,-77547.3337658,0.00014996,2]
[422181931,1778659838000,-363.06964374,0.000149,2]
[422181941,1778659838000,-150.0,0.00014986,2]
[422181944,1778659838000,-328.17389946,0.0001499,2]
[422181942,1778659838000,-150.0,0.00014986,2]
[422181939,1778659838000,-150.0,0.00014986,2]
[422181936,1778659838000,-200.0,0.00014948,2]
[422181935,1778659838000,-9089.55065035,0.00014945,2]
[422181933,1778659838000,-351.04386864,0.0001492,2]
[422181952,1778659838000,-151.0,0.00014996,2]
[422182022,1778659839000,-332.311568,0.00015,2]
[422182020,1778659839000,-171.0,0.00015,2]
[422182018,1778659839000,-151.0,0.00015,2]
[422182016,1778659839000,-151.0,0.00015,2]
[422182011,1778659839000,-151.0,0.00015,2]
[422182019,1778659839000,-151.0,0.00015,2]
[422182038,1778659839000,-765.442738,0.00015068,2]
[422182014,1778659839000,-151.0,0.00015,2]
[422182015,1778659839000,-151.0,0.00015,2]
[422182013,1778659839000,-151.0,0.00015,2]
[422182021,1778659839000,-171.0,0.00015,2]
[422182026,1778659839000,-332.311568,0.00015,2]
[422182025,1778659839000,-332.311568,0.00015,2]
[422182034,1778659839000,-332.311558,0.00015,2]
[422182023,1778659839000,-332.311568,0.00015,2]
[422182035,1778659839000,-350.0,0.00015024,2]
[422182024,1778659839000,-332.311568,0.00015,2]
[422182032,1778659839000,-332.311568,0.00015,2]
[422182029,1778659839000,-332.311568,0.00015,2]
[422182027,1778659839000,-332.311568,0.00015,2]
[422182031,1778659839000,-332.311568,0.00015,2]
[422182028,1778659839000,-332.311568,0.00015,2]
[422182037,1778659839000,-10672.19640642,0.00015057,2]
[422182036,1778659839000,-3548.0,0.00015036,2]
[422182039,1778659839000,-765.442738,0.00015068,2]
[422182012,1778659839000,-151.0,0.00015,2]
[422182030,1778659839000,-332.311568,0.00015,2]
[422182004,1778659839000,-355.063531,0.00015,2]
[422181994,1778659839000,-151.0,0.00015,2]
[422182007,1778659839000,-355.063531,0.00015,2]
[422181981,1778659839000,-920.872408,0.00015,2]
[422181988,1778659839000,-920.872408,0.00015,2]
[422181987,1778659839000,-920.872408,0.00015,2]
[422181982,1778659839000,-920.872408,0.00015,2]
[422181980,1778659839000,-920.872408,0.00015,2]
[422181986,1778659839000,-920.872408,0.00015,2]
[422181985,1778659839000,-920.872408,0.00015,2]
[422181984,1778659839000,-920.872408,0.00015,2]
[422181983,1778659839000,-920.872408,0.00015,2]
[422181989,1778659839000,-920.872408,0.00015,2]
[422181993,1778659839000,-151.0,0.00015,2]
[422181991,1778659839000,-920.872408,0.00015,2]
[422181990,1778659839000,-920.872408,0.00015,2]
[422181992,1778659839000,-151.0,0.00015,2]
[422181997,1778659839000,-1400.61246,0.00015,2]
[422181995,1778659839000,-151.0,0.00015,2]
[422181996,1778659839000,-1400.61245,0.00015,2]
[422182000,1778659839000,-355.063531,0.00015,2]
[422181999,1778659839000,-355.063531,0.00015,2]
[422181998,1778659839000,-1400.61246,0.00015,2]
[422182001,1778659839000,-355.063531,0.00015,2]
[422182003,1778659839000,-355.063531,0.00015,2]
[422182009,1778659839000,-355.063531,0.00015,2]
[422182008,1778659839000,-355.063531,0.00015,2]
[422182010,1778659839000,-355.063528,0.00015,2]
[422182002,1778659839000,-355.063531,0.00015,2]
[422182006,1778659839000,-355.063531,0.00015,2]
[422182005,1778659839000,-355.063531,0.00015,2]
[422182048,1778659839000,-765.442738,0.00015068,2]
[422182017,1778659839000,-151.0,0.00015,2]
[422182041,1778659839000,-765.442738,0.00015068,2]
[422182072,1778659839000,-22437.88,0.0001531,2]
[422182075,1778659839000,-150.99,0.0001531,2]
[422182077,1778659839000,-1195.48,0.0001531,2]
[422182078,1778659839000,-999.99,0.0001531,2]
[422182079,1778659839000,-2000.0,0.00015329,2]
[422182080,1778659839000,-166.23,0.00015346,2]
[422182085,1778659839000,-350.0,0.00015605,2]
[422182082,1778659839000,-150.0,0.00015456,2]
[422182081,1778659839000,-200.0,0.00015401,2]
[422182084,1778659839000,-160.0,0.00015503,2]
[422182076,1778659839000,-299.99,0.0001531,2]
[422182083,1778659839000,-276.61,0.00015457,2]
[422182086,1778659839000,-700.0,0.00015801,2]
[422182088,1778659839000,-388.79145483,0.00015973,2]
[422182089,1778659839000,-300.0,0.00016,2]
[422182091,1778659839000,-361.0,0.00016204,2]
[422182087,1778659839000,-155.79,0.00015916,2]
[422182094,1778659839000,-882.6,0.00016438,2]
[422182090,1778659839000,-300.0,0.00016115,2]
[422182093,1778659839000,-2351.0,0.00016319,2]
[422182092,1778659839000,-433.0,0.00016311,2]
[422182095,1778659839000,-257.99642094,0.00016438,2]
[422182097,1778659839000,-151.0,0.00016438,2]
[422182099,1778659839000,-360.26614,0.00016438,2]
[422182098,1778659839000,-360.26614,0.00016438,2]
[422182100,1778659839000,-360.26614,0.00016438,2]
[422182047,1778659839000,-765.442738,0.00015068,2]
[422182073,1778659839000,-9999.99,0.0001531,2]
[422182070,1778659839000,-200.0,0.00015248,2]
[422182096,1778659839000,-151.0,0.00016438,2]
[422182068,1778659839000,-1837.89686785,0.00015202,2]
[422182066,1778659839000,-1837.89686785,0.00015159,2]
[422182044,1778659839000,-765.442738,0.00015068,2]
[422182042,1778659839000,-765.442738,0.00015068,2]
[422182045,1778659839000,-765.442738,0.00015068,2]
[422182043,1778659839000,-765.442738,0.00015068,2]
[422182040,1778659839000,-765.442738,0.00015068,2]
[422182046,1778659839000,-765.442738,0.00015068,2]
[422182050,1778659839000,-765.442738,0.00015068,2]
[422182051,1778659839000,-765.442738,0.00015068,2]
[422182052,1778659839000,-765.442738,0.00015068,2]
[422182056,1778659839000,-765.442738,0.00015068,2]
[422182053,1778659839000,-765.442738,0.00015068,2]
[422182062,1778659839000,-350.0,0.0001513,2]
[422182049,1778659839000,-765.442738,0.00015068,2]
[422182057,1778659839000,-765.442743,0.00015068,2]
[422182061,1778659839000,-255.0,0.00015108,2]
[422182071,1778659839000,-350.0,0.00015281,2]
[422182065,1778659839000,-155.0,0.00015148,2]
[422182074,1778659839000,-13525.57,0.0001531,2]
[422182063,1778659839000,-256.62633598,0.00015133,2]
[422182067,1778659839000,-387.0,0.000152,2]
[422182060,1778659839000,-200.0,0.00015097,2]
[422182058,1778659839000,-1837.89686785,0.00015086,2]
[422182064,1778659839000,-570.38,0.00015135,2]
[422182054,1778659839000,-765.442738,0.00015068,2]
[422182069,1778659839000,-200.0,0.00015248,2]
[422182059,1778659839000,-200.0,0.00015097,2]
[422182055,1778659839000,-765.442738,0.00015068,2]
[422182134,1778659840000,-2421.0,0.00016784,2]
[422182128,1778659840000,-151.0,0.00016438,2]
[422182125,1778659840000,-1963.82627,0.00016438,2]
[422182132,1778659840000,-155.0,0.00016525,2]
[422182129,1778659840000,-151.0,0.00016438,2]
[422182135,1778659840000,-360.94,0.000169,2]
[422182144,1778659840000,-151.0,0.00016922,2]
[422182140,1778659840000,-254.03155028,0.00016922,2]
[422182143,1778659840000,-151.0,0.00016922,2]
[422182130,1778659840000,-151.0,0.00016438,2]
[422182131,1778659840000,-570.38,0.00016505,2]
[422182139,1778659840000,-151.0,0.00016922,2]
[422182136,1778659840000,-200.0,0.00016922,2]
[422182138,1778659840000,-1377.42282659,0.00016922,2]
[422182137,1778659840000,-500.0,0.00016922,2]
[422182142,1778659840000,-151.0,0.00016922,2]
[422182146,1778659840000,-151.0,0.00016922,2]
[422182145,1778659840000,-151.0,0.00016922,2]
[422182147,1778659840000,-500.0,0.00016922,2]
[422182148,1778659840000,-151.0,0.00016922,2]
[422182122,1778659840000,-1963.82627,0.00016438,2]
[422182156,1778659840000,-151.0,0.00016922,2]
[422182141,1778659840000,-151.0,0.00016922,2]
[422182126,1778659840000,-1963.82627,0.00016438,2]
[422182110,1778659840000,-1963.82627,0.00016438,2]
[422182133,1778659840000,-189.51,0.00016712,2]
[422182152,1778659840000,-151.0,0.00016922,2]
[422182109,1778659840000,-1963.82627,0.00016438,2]
[422182103,1778659840000,-360.26614,0.00016438,2]
[422182108,1778659840000,-1963.82627,0.00016438,2]
[422182106,1778659840000,-153.0,0.00016438,2]
[422182107,1778659840000,-238.78041857,0.00016438,2]
[422182102,1778659840000,-360.26614,0.00016438,2]
[422182105,1778659840000,-360.26614,0.00016438,2]
[422182101,1778659840000,-360.26614,0.00016438,2]
[422182104,1778659840000,-360.26614,0.00016438,2]
[422182111,1778659840000,-1963.82627,0.00016438,2]
[422182121,1778659840000,-1963.82627,0.00016438,2]
[422182112,1778659840000,-1963.82627,0.00016438,2]
[422182114,1778659840000,-1963.82627,0.00016438,2]
[422182113,1778659840000,-1963.82627,0.00016438,2]
[422182115,1778659840000,-1963.82627,0.00016438,2]
[422182118,1778659840000,-1963.82627,0.00016438,2]
[422182117,1778659840000,-1963.82627,0.00016438,2]
[422182119,1778659840000,-1963.82627,0.00016438,2]
[422182120,1778659840000,-1963.82627,0.00016438,2]
[422182116,1778659840000,-1963.82627,0.00016438,2]
[422182127,1778659840000,-1963.82626248,0.00016438,2]
[422182124,1778659840000,-1963.82627,0.00016438,2]
[422182123,1778659840000,-1963.82627,0.00016438,2]
[422182151,1778659840000,-500.0,0.00016922,2]
[422182153,1778659840000,-387.77578206,0.00016922,2]
[422182149,1778659840000,-500.0,0.00016922,2]
[422182185,1778659840000,-329.35,0.00017572,2]
[422182182,1778659840000,-2080.17592889,0.0001747,2]
[422182195,1778659840000,-2157.14243826,0.00018018,2]
[422182192,1778659840000,-350.0,0.00018,2]
[422182188,1778659840000,-5137.58146618,0.00017674,2]
[422182193,1778659840000,-200.0,0.00018018,2]
[422182196,1778659840000,-155.79,0.0001819,2]
[422182187,1778659840000,-736.0,0.00017626,2]
[422182190,1778659840000,-3292.0,0.00017951,2]
[422182191,1778659840000,-1357.46483147,0.00018,2]
[422182197,1778659840000,-1357.46483147,0.000182,2]
[422182189,1778659840000,-363.06964373,0.000179,2]
[422182199,1778659840000,-300.0,0.00018355,2]